[Event "Elegant 1st Division League 2024"]
[Site "Dhaka"]
[Date "2024.07.11"]
[Round "1.15"]
[White "Kazi, Saiyf"]
[Black "Abhinandan Ganguly"]
[Result "1-0"]
[Annotator "NA RC"]
[ECO "D02"]
[WhiteElo "1881"]
[BlackElo "1732"]
[PlyCount "101"]
[EventDate "2024.07.10"]
[EventType "team-tourn"]
[EventCountry "BAN"]
[SourceTitle "playchess.com"]
[Source "ChessBase"]
[SourceQuality "1"]
[TimeControl "5400+30"]

1. d4 {[%emt 0:00:19]} d5 {[%emt 0:00:07]} 2. Nf3 {[%emt 0:00:34]} Bf5 {[%emt 0:00:33]} 3. Bf4 {[%emt 0:00:53]} e6 {[%emt 0:00:11]} 4. e3 {[%emt 0:00:29]} Bd6 {[%emt 0:01:42]} 5. Bg3 {[%emt 0:01:39]} Nf6 {[%emt 0:01:15]} 6. Nbd2 {[%emt 0:01:05]} O-O {[%emt 0:01:52] D02: 1 d4 d5 2 Pf3 Zijvarianten, inclusief 2...Pf6 3 g3 en 2...Pf6 3 Lf4.} 7. c4 {[%emt 0:01:27]} Bxg3 {[%emt 0:03:49]} 8. hxg3 {[%emt 0:00:29]} c6 {[%emt 0:00:03]} 9. Ne5 {[%emt 0:03:50]} Nbd7 {[%emt 0:07:18]} 10. g4 {[%emt 0:07:25]} Bg6 {[%emt 0:01:03]} 11. Nxg6 {[%emt 0:02:26]} fxg6 {[%emt 0:09:00]} 12. g5 {[%emt 0:04:51]} Ne4 13. Nxe4 {[%emt 0:05:08]} dxe4 {[%emt 0:06:47]} 14. Qg4 {[%emt 0:08:45]} Qa5+ {[%emt 0:01:06]} 15. Ke2 {[%emt 0:00:09]} Qf5 {[%emt 0:00:10]} 16. Qh4 {[%emt 0:03:58]} Kf7 {[%emt 0:17:30]} 17. g4 {[%emt 0:10:40]} Qf3+ {[%emt 0:06:18]} 18. Ke1 {[%emt 0:02:16]} Ke7 {[%emt 0:01:17]} 19. Rh3 {[%emt 0:06:35]} Qf7 {[%emt 0:01:05]} 20. Bg2 {[%emt 0:02:15]} e5 {[%emt 0:01:17]} 21. b3 {[%emt 0:03:19]} exd4 {[%emt 0:14:00]} 22. exd4 {[%emt 0:01:52]} Rae8 {[%emt 0:00:29]} 23. Re3 {[%emt 0:01:55]} Kd8 {[%emt 0:00:44] [#]} 24. Kf1 $16 {[%emt 0:06:34]} c5 {[%emt 0:06:00]} 25. Rd1 {[%emt 0:08:17]} Kc8 {[%emt 0:00:10]} 26. d5 {[%emt 0:01:20]} Qf4 {[%emt 0:09:05]} 27. Rde1 {[%emt 0:03:56]} Re5 {[%emt 0:01:58]} 28. Rxe4 {[%emt 0:03:56]} Qxg5 {[%emt 0:01:22]} 29. Qxg5 {[%emt 0:03:53]} Rxg5 {[%emt 0:00:01]} 30. Re8+ {[%emt 0:03:05]} Rxe8 {[%emt 0:03:52]} 31. Rxe8+ {[%emt 0:00:06]} Kc7 {[%emt 0:00:03]} 32. Re7 {[%emt 0:00:21]} Kc8 {[%emt 0:05:19]} 33. Rxd7 {[%emt 0:01:16]} Kxd7 {[%emt 0:00:10]} 34. f4 {[%emt 0:00:03]} Rxg4 {[%emt 0:00:58]} 35. Bh3 {[%emt 0:00:02]} h5 {[%emt 0:00:43]} 36. Bxg4+ {[%emt 0:00:02]} hxg4 {[%emt 0:00:01]} 37. Kg2 {[%emt 0:00:01]} Kd6 {[%emt 0:01:02]} 38. Kg3 {[%emt 0:00:04]} g5 {[%emt 0:00:20]} 39. fxg5 {[%emt 0:00:16]} g6 {[%emt 0:00:13]} 40. Kxg4 {[%emt 0:00:14]} Ke5 {[%emt 0:01:37]} 41. a3 {[%emt 0:00:10]} b5 {[%emt 0:00:00]} 42. a4 {[%emt 0:01:31]} bxa4 {[%emt 0:00:00]} 43. bxa4 {[%emt 0:00:02]} a5 {[%emt 0:00:00]} 44. Kg3 {[%emt 0:01:14]} Kf5 {[%emt 0:02:00]} 45. Kh4 {[%emt 0:00:04]} Ke5 {[%emt 0:00:30]} 46. Kg4 {[%emt 0:00:02]} Kd6 {[%emt 0:00:30]} 47. Kf4 {[%emt 0:00:01]} Kd7 {[%emt 0:00:00]} 48. Ke5 {[%emt 0:00:07]} Ke7 {[%emt 0:00:00]} 49. d6+ {[%emt 0:00:16]} Kd7 {[%emt 0:00:00]} 50. Kd5 {[%emt 0:00:09]} Kd8 {[%emt 0:00:00]} 51. Kxc5 {[%emt 0:06:39]} 1-0

[Event "Elegant 1st Division League 2024"]
[Site "Dhaka"]
[Date "2024.07.11"]
[Round "1.16"]
[White "Hossain, Delwar"]
[Black "Mohammed, Shaker Ullah"]
[Result "1/2-1/2"]
[Annotator "NA RC"]
[ECO "A18"]
[WhiteElo "1959"]
[BlackElo "2018"]
[PlyCount "138"]
[EventDate "2024.07.10"]
[EventType "team-tourn"]
[EventCountry "BAN"]
[SourceTitle "playchess.com"]
[Source "ChessBase"]
[SourceQuality "1"]
[TimeControl "5400+30"]

1. c4 {[%emt 0:00:01]} Nf6 {[%emt 0:01:33]} 2. Nc3 {[%emt 0:00:07]} e6 {[%emt 0:01:06]} 3. e4 {[%emt 0:00:05]} b6 {[%emt 0:05:19]} 4. e5 {[%emt 0:06:51]} Ng8 {[%emt 0:00:04]} 5. d4 {[%emt 0:01:25]} Nc6 {[%emt 0:02:20]} 6. f4 {[%emt 0:02:45] A18: English Opening: Flohr-Mikenas System (1 c4 Nf6 2 Nc3 e6 3 e4).} Bb4 {[%emt 0:14:20]} 7. Nf3 {[%emt 0:00:57]} Bb7 {[%emt 0:02:31]} 8. Bd3 {[%emt 0:02:50]} Nge7 {[%emt 0:00:55]} 9. Be3 {[%emt 0:00:48]} d5 {[%emt 0:01:42]} 10. O-O {[%emt 0:01:49]} dxc4 {[%emt 0:03:14]} 11. Bxc4 {[%emt 0:00:39]} Nf5 {[%emt 0:00:31]} (11... Qd7 $14) 12. Bf2 {[%emt 0:00:16]} O-O {[%emt 0:05:54]} 13. a3 {[%emt 0:04:32]} Be7 $2 {[%emt 0:03:42]} (13... Bxc3 $11 14. bxc3 Qd7) 14. b4 {[%emt 0:05:02]} Qd7 {[%emt 0:20:59]} 15. d5 {[%emt 0:04:16]} exd5 {[%emt 0:01:00]} 16. Nxd5 {[%emt 0:01:50]} Rad8 {[%emt 0:01:32]} 17. Qb1 {[%emt 0:07:00]} Ncd4 {[%emt 0:07:11]} 18. Nxe7+ {[%emt 0:18:36]} Qxe7 {[%emt 0:01:49]} 19. Nxd4 {[%emt 0:00:54]} Nxd4 {[%emt 0:01:26]} 20. Rd1 {[%emt 0:04:53]} Ne6 {[%emt 0:02:36]} 21. Qf5 {[%emt 0:02:24]} Rxd1+ {[%emt 0:02:26]} 22. Rxd1 {[%emt 0:00:08]} Rd8 {[%emt 0:00:31]} 23. Re1 {[%emt 0:00:44]} Rd2 {[%emt 0:02:16]} (23... Qe8 $11) 24. Qg4 {[%emt 0:06:57]} h5 {[%emt 0:07:52]} 25. Qg3 $11 {[%emt 0:00:42]} Bd5 {[%emt 0:04:05]} 26. Qc3 {[%emt 0:02:56]} Rxf2 {[%emt 0:04:39]} 27. Kxf2 {[%emt 0:01:07]} Qh4+ {[%emt 0:00:59]} 28. Ke2 {[%emt 0:04:15]} Qg4+ {[%emt 0:01:00]} 29. Kd2 {[%emt 0:03:02]} Qxf4+ {[%emt 0:00:05]} 30. Kd3 {[%emt 0:00:54]} Qf5+ {[%emt 0:00:11]} 31. Kd2 {[%emt 0:00:45]} Qf4+ {[%emt 0:00:11]} 32. Kd3 {[%emt 0:00:33]} Qf5+ {[%emt 0:01:20]} 33. Kd2 {[%emt 0:00:12]} Qf4+ {[%emt 0:00:42]} 34. Kd3 {[%emt 0:00:11]} Qf5+ {[%emt 0:00:55]} 35. Kd2 {[%emt 0:00:02]} Qg5+ {[%emt 0:00:25]} 36. Kd1 {[%emt 0:01:07]} Qxg2 {[%emt 0:00:21]} 37. Bxd5 {[%emt 0:01:12]} Qxd5+ {[%emt 0:00:03]} 38. Kc1 {[%emt 0:01:14]} Qa2 {[%emt 0:00:23]} 39. Qb2 {[%emt 0:01:46]} Qc4+ {[%emt 0:00:28]} 40. Kb1 {[%emt 0:00:41]} Nd4 {[%emt 0:00:32]} 41. Rc1 {[%emt 0:01:34]} Qd3+ {[%emt 0:00:15]} 42. Ka2 {[%emt 0:00:37]} Ne6 {[%emt 0:00:10]} 43. Qc3 {[%emt 0:01:32]} Qe4 {[%emt 0:00:32]} 44. Rd1 {[%emt 0:01:07]} g6 {[%emt 0:00:43]} 45. Rd2 {[%emt 0:00:20]} Qf4 {[%emt 0:00:19]} 46. Kb2 {[%emt 0:01:17]} Qe4 {[%emt 0:00:24]} 47. Kb3 {[%emt 0:02:45]} Kg7 {[%emt 0:00:55]} 48. Qd3 {[%emt 0:01:12]} Qxe5 {[%emt 0:00:47]} 49. Qc3 {[%emt 0:00:18]} Qxc3+ {[%emt 0:00:27]} 50. Kxc3 {[%emt 0:00:06]} g5 {[%emt 0:00:06]} 51. Kc4 {[%emt 0:00:51]} g4 {[%emt 0:00:29]} 52. Kd5 {[%emt 0:00:59]} Kg6 {[%emt 0:00:37]} 53. Ke5 {[%emt 0:00:28]} Kg5 {[%emt 0:00:35]} 54. Rf2 {[%emt 0:00:47]} Kh4 {[%emt 0:00:51]} 55. Rxf7 {[%emt 0:00:45]} Ng5 {[%emt 0:00:09]} 56. Rxc7 {[%emt 0:01:39]} Nf3+ {[%emt 0:00:06]} 57. Kf4 {[%emt 0:00:53]} Nxh2 {[%emt 0:00:05]} 58. Rxa7 {[%emt 0:01:12]} g3 {[%emt 0:00:07]} 59. Rg7 {[%emt 0:01:36]} Ng4 {[%emt 0:00:36]} 60. Re7 {[%emt 0:00:52]} Kh3 {[%emt 0:00:35]} 61. Re1 {[%emt 0:00:44]} g2 {[%emt 0:00:27]} 62. a4 {[%emt 0:00:42]} Kh2 {[%emt 0:00:42]} 63. a5 {[%emt 0:00:56]} bxa5 {[%emt 0:00:02]} 64. bxa5 {[%emt 0:00:06]} Nf6 {[%emt 0:00:25]} 65. Kg5 {[%emt 0:00:49]} g1=Q+ {[%emt 0:01:55]} 66. Rxg1 {[%emt 0:00:39]} Kxg1 {[%emt 0:00:02]} 67. a6 {[%emt 0:00:35]} Nd5 {[%emt 0:00:16]} 68. a7 {[%emt 0:00:34]} Nb6 {[%emt 0:00:19]} 69. Kxh5 {[%emt 0:00:11]} Kf2 {[%emt 0:00:01]} 1/2-1/2

[Event "Elegant 1st Division League 2024"]
[Site "Dhaka"]
[Date "2024.07.11"]
[Round "1.17"]
[White "Md, Eftekhar Alam"]
[Black "Miraj Uddin, Ahmed"]
[Result "1/2-1/2"]
[Annotator "NA RC"]
[ECO "D35"]
[WhiteElo "2006"]
[BlackElo "1827"]
[PlyCount "111"]
[EventDate "2024.07.10"]
[EventType "team-tourn"]
[EventCountry "BAN"]
[SourceTitle "playchess.com"]
[Source "ChessBase"]
[SourceQuality "1"]
[TimeControl "5400+30"]

1. d4 {[%emt 0:03:03]} d5 {[%emt 0:00:31]} 2. c4 {[%emt 0:00:13]} e6 {[%emt 0:00:17]} 3. Nc3 {[%emt 0:00:17]} c6 {[%emt 0:00:19]} 4. cxd5 {[%emt 0:01:17]} exd5 {[%emt 0:00:21]} 5. Bf4 {[%emt 0:00:17]} Nf6 {[%emt 0:00:35]} 6. e3 {[%emt 0:00:45]} Bd6 {[%emt 0:02:30]} 7. Bg3 {[%emt 0:00:54] D35: Queen's Gambit Declined: Exchange Variation.} O-O {[%emt 0:02:27]} 8. Bd3 {[%emt 0:01:07]} Re8 {[%emt 0:00:57]} 9. Nf3 {[%emt 0:00:46]} Bg4 {[%emt 0:00:43]} 10. Qc2 {[%emt 0:00:51]} Bb4 {[%emt 0:10:52]} 11. Ne5 {[%emt 0:03:04]} Bh5 {[%emt 0:05:21]} 12. O-O {[%emt 0:04:57]} Bxc3 {[%emt 0:00:37]} 13. bxc3 {[%emt 0:00:17]} Bg6 {[%emt 0:00:25]} 14. c4 {[%emt 0:01:08]} Bxd3 {[%emt 0:02:52]} 15. Qxd3 {[%emt 0:00:10]} Ne4 {[%emt 0:00:11]} 16. cxd5 {[%emt 0:02:48]} Qxd5 {[%emt 0:04:49]} 17. Rfd1 {[%emt 0:04:08]} f6 {[%emt 0:01:20]} 18. Nf3 {[%emt 0:01:39]} Nxg3 {[%emt 0:00:20]} 19. hxg3 {[%emt 0:00:25]} Nd7 {[%emt 0:00:39]} 20. a4 {[%emt 0:02:09]} Rad8 {[%emt 0:09:00]} 21. Rab1 {[%emt 0:02:05]} a6 {[%emt 0:07:21]} 22. Qc3 {[%emt 0:04:34]} b5 {[%emt 0:04:45]} 23. Qa5 {[%emt 0:01:13]} Nb8 {[%emt 0:00:46]} 24. Rdc1 {[%emt 0:01:40]} Qa2 {[%emt 0:00:47]} 25. Ra1 {[%emt 0:02:26]} Qb3 {[%emt 0:03:14]} 26. Nd2 {[%emt 0:02:48]} Qd3 {[%emt 0:07:24]} 27. Qc3 {[%emt 0:03:38]} Qxc3 {[%emt 0:10:23]} 28. Rxc3 {[%emt 0:00:08]} Rd5 {[%emt 0:00:16]} 29. Nb3 {[%emt 0:01:49]} Kf7 {[%emt 0:05:20]} 30. axb5 {[%emt 0:03:33]} axb5 {[%emt 0:01:29]} 31. Ra7+ {[%emt 0:01:04]} Re7 {[%emt 0:00:46]} 32. Ra8 {[%emt 0:00:12]} Rb7 {[%emt 0:03:56]} 33. Kf1 {[%emt 0:04:23]} Rb6 {[%emt 0:02:23]} 34. Nc5 {[%emt 0:03:16]} Nd7 {[%emt 0:05:09]} (34... b4 {was een poging waard.} 35. Ra7+ Ke8) 35. Ra7 $18 {[%emt 0:00:51]} Ke8 {[%emt 0:00:46]} 36. Ne6 {[%emt 0:00:53]} Ke7 {[%emt 0:01:54]} 37. Nxg7 {[%emt 0:01:42]} Rg5 {[%emt 0:00:14]} 38. d5 {[%emt 0:08:52]} cxd5 {[%emt 0:00:52]} 39. Rcc7 {[%emt 0:00:48]} Rd6 {[%emt 0:00:06]} 40. Rcb7 {[%emt 0:01:30]} Rxg7 {[%emt 0:00:25]} 41. Rxb5 {[%emt 0:00:21]} Rg8 {[%emt 0:00:49]} 42. Rb4 {[%emt 0:00:34]} h6 {[%emt 0:01:20]} 43. Rh4 {[%emt 0:00:38]} f5 {[%emt 0:00:23]} 44. Ke2 {[%emt 0:00:53]} Rb8 {[%emt 0:00:29]} 45. Kf3 {[%emt 0:01:15]} Rh8 {[%emt 0:00:34]} 46. Kf4 {[%emt 0:00:41]} h5 {[%emt 0:01:00]} 47. Kg5 {[%emt 0:02:59]} Rg8+ {[%emt 0:00:35]} 48. Kf4 {[%emt 0:00:14]} Rh6 {[%emt 0:01:45]} 49. Kf3 {[%emt 0:01:01]} Rg4 {[%emt 0:00:43]} 50. Rh1 {[%emt 0:00:32]} h4 {[%emt 0:00:22]} 51. Rd1 {[%emt 0:01:34]} Rd6 {[%emt 0:00:24]} 52. Rh1 {[%emt 0:01:25]} hxg3 {[%emt 0:01:17]} 53. Rh7+ {[%emt 0:01:04]} Ke6 {[%emt 0:03:57]} 54. fxg3 {[%emt 0:00:35]} Ne5+ {[%emt 0:00:00]} 55. Kf2 {[%emt 0:00:48]} Nd7 {[%emt 0:00:00]} 56. Kf3 {[%emt 0:00:12]} 1/2-1/2

[Event "Elegant 1st Division League 2024"]
[Site "Dhaka"]
[Date "2024.07.11"]
[Round "1.18"]
[White "Shatadru Shovan, Dey"]
[Black "Mahindrakar Indrajeet"]
[Result "0-1"]
[Annotator "RC"]
[ECO "A48"]
[WhiteElo "1879"]
[BlackElo "2129"]
[PlyCount "78"]
[EventDate "2024.07.10"]
[EventType "team-tourn"]
[EventCountry "BAN"]
[SourceTitle "playchess.com"]
[Source "ChessBase"]
[SourceQuality "1"]
[TimeControl "5400+30"]

1. d4 {[%emt 0:00:59]} c5 {[%emt 0:02:46]} 2. e3 {[%emt 0:03:29]} Nf6 {[%emt 1:28:44]} 3. Nf3 {[%emt 0:00:54]} g6 {[%emt 0:00:00]} 4. Bd3 {[%emt 0:05:05]} Bg7 {[%emt 0:00:00]} 5. O-O {[%emt 0:00:15]} O-O {[%emt 0:00:00]} 6. Re1 {[%emt 0:01:35]} Nc6 {[%emt 0:00:00]} 7. b3 {[%emt 0:06:44]} d6 {[%emt 0:00:00]} 8. Bb2 {[%emt 0:01:13]} Qc7 {[%emt 0:00:00]} 9. c4 {[%emt 0:04:27]} e5 {[%emt 0:00:00]} 10. dxe5 {[%emt 0:15:36]} dxe5 {[%emt 0:00:00]} 11. Nc3 {[%emt 0:00:33]} e4 {[%emt 0:00:00]} 12. Nxe4 {[%emt 0:00:50]} Nxe4 {[%emt 0:05:00]} 13. Bxg7 {[%emt 0:00:44]} Nxf2 {[%emt 0:00:00]} 14. Kxf2 {[%emt 0:00:39]} Kxg7 {[%emt 0:00:00]} 15. Be4 {[%emt 0:03:16]} Bg4 {[%emt 0:00:00]} 16. Bxc6 {[%emt 0:01:34]} bxc6 {[%emt 0:00:00]} 17. h3 {[%emt 0:00:15]} Rad8 {[%emt 0:00:00]} 18. Qe2 {[%emt 0:04:22]} Bxf3 {[%emt 0:00:00]} 19. Qxf3 {[%emt 0:00:53]} Rd2+ {[%emt 0:00:00]} 20. Re2 {[%emt 0:00:12]} Rfd8 {[%emt 0:00:00]} 21. Rae1 {[%emt 0:00:19]} R2d6 {[%emt 0:00:00]} 22. Kg1 {[%emt 0:00:59]} Rf6 {[%emt 0:00:00]} 23. Qg4 {[%emt 0:01:50]} h5 {[%emt 0:00:00]} 24. Qh4 {[%emt 0:00:16]} Qe5 {[%emt 0:00:00]} 25. Rf2 {[%emt 0:04:24]} Rdd6 {[%emt 0:00:00]} 26. Rxf6 {[%emt 0:02:59]} Rxf6 {[%emt 0:00:00]} 27. Re2 {[%emt 0:03:21]} Rd6 {[%emt 0:00:00]} 28. Qf4 {[%emt 0:01:28]} Qa1+ {[%emt 0:00:00]} 29. Kh2 {[%emt 0:00:36]} Rf6 {[%emt 0:00:00]} 30. Qh4 {[%emt 0:08:12]} Rf1 {[%emt 0:02:32]} 31. Rf2 {[%emt 0:11:05]} Rh1+ {[%emt 0:01:40]} 32. Kg3 {[%emt 0:00:14]} Qe5+ {[%emt 0:01:05]} 33. Qf4 {[%emt 0:00:26]} Qe7 {[%emt 0:00:41]} 34. Rd2 {[%emt 0:01:58]} g5 {[%emt 0:01:49]} 35. Qf3 {[%emt 0:04:21]} Qe5+ {[%emt 0:02:29]} 36. Kf2 {[%emt 0:00:34]} Qa1 {[%emt 0:00:33]} 37. Kg3 {[%emt 0:01:24]} Rf1 {[%emt 0:00:36]} 38. Qxh5 {[%emt 0:06:05]} Qe5+ {[%emt 0:00:19]} 39. Kg4 {[%emt 0:00:55]} Rf4+ {[%emt 0:00:30]} 0-1

[Event "Elegant 1st Division League 2024"]
[Site "Dhaka"]
[Date "2024.07.11"]
[Round "1.19"]
[White "Majumder Shrayan"]
[Black "S M Sharon"]
[Result "1/2-1/2"]
[Annotator "NA RC"]
[ECO "A46"]
[WhiteElo "2083"]
[BlackElo "2047"]
[PlyCount "99"]
[EventDate "2024.07.10"]
[EventType "team-tourn"]
[EventCountry "BAN"]
[SourceTitle "playchess.com"]
[Source "ChessBase"]
[SourceQuality "1"]
[TimeControl "5400+30"]

1. b3 {[%emt 0:00:41]} Nf6 {[%emt 0:02:17]} 2. Bb2 {[%emt 0:00:19]} d6 {[%emt 0:00:16]} 3. d4 {[%emt 0:04:04]} g6 {[%emt 0:00:13]} 4. Nd2 {[%emt 0:01:14]} Bg7 {[%emt 0:00:13]} 5. e4 {[%emt 0:00:34]} O-O {[%emt 0:00:41]} 6. Ngf3 {[%emt 0:02:41]} a5 {[%emt 0:07:16] A46: 1 d4 Pf6 2 Pf3 e6: Torre, London en Colle Systemen.} 7. Bd3 {[%emt 0:08:58]} Nc6 {[%emt 0:03:46]} 8. a3 {[%emt 0:04:37]} e5 {[%emt 0:01:44]} 9. dxe5 {[%emt 0:05:43]} Ng4 {[%emt 0:02:20]} 10. Nc4 {[%emt 0:01:21]} Ncxe5 {[%emt 0:04:40]} 11. Nfxe5 {[%emt 0:01:03]} Nxe5 {[%emt 0:00:15]} 12. Nxe5 {[%emt 0:08:02]} Bxe5 {[%emt 0:01:00]} 13. Bxe5 {[%emt 0:00:13]} dxe5 {[%emt 0:00:01]} 14. Bc4 {[%emt 0:02:15]} Qe7 {[%emt 0:00:40]} 15. Qf3 {[%emt 0:01:48]} Be6 {[%emt 0:00:59]} 16. Bxe6 {[%emt 0:00:46]} Qxe6 {[%emt 0:00:06]} 17. O-O {[%emt 0:01:22]} Rfd8 {[%emt 0:03:21]} 18. Rad1 {[%emt 0:03:02]} Qc6 {[%emt 0:02:37]} 19. c3 {[%emt 0:02:20]} a4 {[%emt 0:01:36]} 20. b4 {[%emt 0:00:24]} Qc4 {[%emt 0:00:50]} 21. h4 {[%emt 0:02:04]} h5 {[%emt 0:02:39]} 22. Qf6 {[%emt 0:04:04]} Rxd1 {[%emt 0:02:15]} 23. Rxd1 {[%emt 0:00:10]} Qxc3 {[%emt 0:00:31]} 24. Rd7 {[%emt 0:03:30]} Rf8 {[%emt 0:01:08]} 25. g4 {[%emt 0:10:26]} hxg4 {[%emt 0:04:35]} 26. h5 {[%emt 0:00:18]} g3 {[%emt 0:03:31]} 27. hxg6 {[%emt 0:08:29]} Qe1+ {[%emt 0:03:33]} 28. Kg2 {[%emt 0:00:13]} Qxf2+ {[%emt 0:04:57]} 29. Qxf2 {[%emt 0:00:08]} gxf2 {[%emt 0:00:06]} 30. Kxf2 {[%emt 0:00:14]} fxg6+ {[%emt 0:00:22]} 31. Ke3 {[%emt 0:01:23]} Rf7 {[%emt 0:00:47]} 32. Rd5 {[%emt 0:00:06]} Re7 {[%emt 0:03:19]} (32... Rh7 $17 33. Rxe5 Rh3+ 34. Kd4 Kf8 (34... Rxa3 35. Re8+ Kf7 36. Rb8 $15)) 33. Ra5 {[%emt 0:00:06]} Kg7 {[%emt 0:00:29]} 34. Rxa4 {[%emt 0:00:10]} Kf6 {[%emt 0:05:17]} 35. Ra7 {[%emt 0:00:30]} b6 {[%emt 0:01:11]} 36. a4 {[%emt 0:01:18]} Kg5 {[%emt 0:01:09]} 37. a5 {[%emt 0:02:17]} bxa5 {[%emt 0:00:10]} 38. bxa5 {[%emt 0:01:02] [#]} Rh7 $1 {[%emt 0:02:57]} 39. Kd3 $1 {[%emt 0:00:15]} Kf4 {[%emt 0:01:00]} 40. a6 {[%emt 0:00:39]} Rh3+ {[%emt 0:00:31]} 41. Kc4 {[%emt 0:00:06]} Ra3 {[%emt 0:06:35]} 42. Kb5 $11 {[%emt 0:00:42]} Rb3+ {[%emt 0:13:31]} 43. Ka5 {[%emt 0:05:09]} Rc3 {[%emt 0:04:26]} 44. Rb7 {[%emt 0:02:58]} Ra3+ {[%emt 0:00:32]} 45. Kb5 {[%emt 0:00:09]} c5 {[%emt 0:01:37]} 46. a7 {[%emt 0:12:28]} Kxe4 {[%emt 0:00:41]} 47. Kxc5 {[%emt 0:00:13]} g5 {[%emt 0:01:53]} 48. Rg7 {[%emt 0:01:06]} Kf3 {[%emt 0:02:14]} 49. Rxg5 {[%emt 0:01:14]} Rxa7 {[%emt 0:00:21]} 50. Kd5 {[%emt 0:02:36]} 1/2-1/2

[Event "Elegant 1st Division League 2024"]
[Site "Dhaka"]
[Date "2024.07.11"]
[Round "1.20"]
[White "Sacchu, Afzal Hossain"]
[Black "Md, Azmaeen Parvez Sayor"]
[Result "1/2-1/2"]
[Annotator "NA RC"]
[ECO "A85"]
[WhiteElo "1981"]
[BlackElo "1969"]
[PlyCount "109"]
[EventDate "2024.07.10"]
[EventType "team-tourn"]
[EventCountry "BAN"]
[SourceTitle "playchess.com"]
[Source "ChessBase"]
[SourceQuality "1"]
[TimeControl "5400+30"]

1. d4 {[%emt 0:00:01]} f5 {[%emt 0:00:44]} 2. c4 {[%emt 0:00:27]} Nf6 {[%emt 0:00:07]} 3. Nc3 {[%emt 0:00:17]} d6 {[%emt 0:00:35]} 4. Bg5 {[%emt 0:01:17]} Nbd7 {[%emt 0:00:09]} 5. e3 {[%emt 0:01:28]} e6 {[%emt 0:01:41]} 6. Bd3 {[%emt 0:00:52]} Be7 {[%emt 0:01:51]} 7. Nge2 {[%emt 0:01:19]} O-O {[%emt 0:02:22]} 8. f3 {[%emt 0:02:09]} h6 {[%emt 0:02:50]} 9. Bh4 {[%emt 0:00:34]} Nd5 {[%emt 0:02:02]} 10. Bxe7 {[%emt 0:01:04]} Nxe7 {[%emt 0:00:09]} 11. Qc2 {[%emt 0:00:48]} c5 {[%emt 0:03:22]} 12. O-O {[%emt 0:05:27]} e5 {[%emt 0:01:01]} 13. dxe5 {[%emt 0:01:40]} dxe5 {[%emt 0:01:26]} 14. Rfd1 {[%emt 0:01:51]} a6 {[%emt 0:10:15]} 15. Ng3 {[%emt 0:02:17]} g6 {[%emt 0:01:04]} 16. a3 {[%emt 0:00:32]} ({Beter is} 16. a4) 16... Qc7 {[%emt 0:02:04]} 17. b4 {[%emt 0:04:19]} b6 {[%emt 0:02:02]} 18. Nd5 {[%emt 0:01:56]} Nxd5 {[%emt 0:01:07]} 19. cxd5 {[%emt 0:00:06]} Qd6 {[%emt 0:00:38]} 20. Rab1 {[%emt 0:06:10]} b5 {[%emt 0:04:53]} 21. bxc5 {[%emt 0:01:12]} Nxc5 {[%emt 0:00:32]} 22. Rbc1 {[%emt 0:02:44]} Nb7 {[%emt 0:02:35]} 23. Qc6 {[%emt 0:01:43]} Rb8 {[%emt 0:02:06]} 24. Qxd6 {[%emt 0:02:36]} Nxd6 {[%emt 0:00:07]} 25. Rc6 {[%emt 0:00:37]} Rd8 {[%emt 0:00:42]} 26. e4 {[%emt 0:00:41]} f4 {[%emt 0:01:19]} 27. Ne2 {[%emt 0:02:17]} Bb7 {[%emt 0:01:28]} 28. Rc7 {[%emt 0:00:55]} Kf8 {[%emt 0:04:43]} 29. Kf2 {[%emt 0:00:59]} Rbc8 {[%emt 0:01:20]} 30. Rdc1 {[%emt 0:01:00]} g5 {[%emt 0:06:53]} 31. Ke1 {[%emt 0:01:34]} Ke8 {[%emt 0:01:30]} 32. R1c5 {[%emt 0:00:57]} Rxc7 {[%emt 0:04:26]} 33. Rxc7 {[%emt 0:00:11]} Rd7 {[%emt 0:00:16]} 34. Rc5 {[%emt 0:01:34]} Kd8 {[%emt 0:00:22]} 35. a4 {[%emt 0:02:42]} Rc7 {[%emt 0:02:21]} 36. Rxc7 {[%emt 0:00:09]} Kxc7 {[%emt 0:00:07]} 37. axb5 {[%emt 0:03:33]} axb5 {[%emt 0:00:23]} 38. Nc1 {[%emt 0:01:48]} Kb6 {[%emt 0:01:08]} 39. Nb3 {[%emt 0:02:55]} Bc8 {[%emt 0:00:27]} 40. Kd2 {[%emt 0:00:23]} Bd7 {[%emt 0:00:30]} 41. Kc3 {[%emt 0:01:17]} Nb7 {[%emt 0:01:08]} 42. Kb4 {[%emt 0:01:16]} Be8 {[%emt 0:02:21]} 43. Bf1 {[%emt 0:02:11]} Bd7 {[%emt 0:00:59]} 44. g3 {[%emt 0:00:41]} Be8 {[%emt 0:03:38]} 45. gxf4 {[%emt 0:00:50]} gxf4 {[%emt 0:00:23]} 46. h4 {[%emt 0:01:05]} Bd7 {[%emt 0:02:09]} 47. Nc1 {[%emt 0:02:00]} Nc5 {[%emt 0:00:58]} 48. Nd3 {[%emt 0:00:35]} Nxd3+ {[%emt 0:01:19]} 49. Bxd3 {[%emt 0:00:01]} Be8 $11 {[%emt 0:00:37]} 50. Be2 {[%emt 0:05:22]} Bh5 {[%emt 0:03:27]} 51. Bd1 {[%emt 0:02:21]} Be8 {[%emt 0:00:33]} 52. Be2 {[%emt 0:00:54]} Bh5 {[%emt 0:00:12]} 53. Bd1 {[%emt 0:02:59]} Be8 {[%emt 0:00:24]} 54. Be2 {[%emt 0:02:16]} Bh5 {[%emt 0:00:10]} 55. Bd1 {[%emt 0:29:08]} 1/2-1/2

[Event "Elegant 1st Division League 2024"]
[Site "Dhaka"]
[Date "2024.07.11"]
[Round "1.22"]
[White "Faisal, Hossain"]
[Black "Soumyajit Das"]
[Result "1/2-1/2"]
[Annotator "NA RC"]
[ECO "C20"]
[WhiteElo "1872"]
[BlackElo "1850"]
[PlyCount "32"]
[EventDate "2024.07.10"]
[EventType "team-tourn"]
[EventCountry "BAN"]
[SourceTitle "playchess.com"]
[Source "ChessBase"]
[SourceQuality "1"]
[TimeControl "5400+30"]

1. e4 {[%emt 0:00:30]} e5 {[%emt 0:00:16]} 2. g3 {[%emt 0:00:02]} Nf6 {[%emt 0:04:49]} 3. Bg2 {[%emt 0:00:08]} Bc5 {[%emt 1:26:55]} 4. Ne2 {[%emt 0:02:42]} c6 {[%emt 0:00:00]} 5. d4 {[%emt 0:03:47]} exd4 {[%emt 0:00:00]} 6. Nxd4 {[%emt 0:00:02]} d6 {[%emt 0:00:00]} 7. h3 {[%emt 0:01:36]} O-O {[%emt 0:00:00]} 8. O-O {[%emt 0:00:18]} Re8 {[%emt 0:00:00]} 9. Nc3 {[%emt 0:02:21]} a5 {[%emt 0:00:00]} 10. Bf4 {[%emt 0:02:42]} a4 {[%emt 0:00:00]} 11. a3 {[%emt 0:00:24]} Qb6 {[%emt 0:00:00]} 12. Nde2 {[%emt 0:02:23]} Rd8 {[%emt 0:00:00]} 13. Qd2 {[%emt 0:00:17]} Re8 {[%emt 0:00:00]} 14. Qd1 {[%emt 0:00:06]} Rd8 {[%emt 0:00:00]} 15. Qd2 {[%emt 0:00:01]} Re8 {[%emt 0:00:00]} 16. Qd1 {[%emt 0:00:10]} Rd8 {[%emt 0:00:00]} 1/2-1/2